lending/lending_fUSD_20251121
["ID","MTS","AMOUNT","RATE_DAILY","PERIOD"]
[394547243,1763692145572,500.0,0.00041913,120]
[394547244,1763692146214,500.0,0.00041913,120]
[394547245,1763692146797,500.0,0.00041913,120]
[394547246,1763692146991,539.24,0.00041913,120]
[394547247,1763692147552,500.0,0.00041913,120]
[394547248,1763692147982,250.0,0.00041913,120]
[394547249,1763692148645,151.0,0.00041913,50]
[394547250,1763692148938,151.0,0.00041913,50]
[394547251,1763692149220,151.0,0.00041913,50]
[394547252,1763692149518,151.0,0.00041913,50]
[394547253,1763692149821,177.548473,0.00041913,50]
[394547254,1763692150104,500.0,0.00041913,120]
[394547255,1763692150717,500.0,0.00041913,120]
[394547257,1763692162767,1000.0,0.00041913,30]
[394547259,1763692186578,1000.0,0.00041913,30]
[394547260,1763692212219,500.0,0.00041913,120]
[394547261,1763692221217,500.0,0.00041913,120]
[394547262,1763692224364,7106.27920298,0.00041913,30]
[394547263,1763692224409,250.0,0.00041913,120]
[394547271,1763692232093,-166.66,0.00016188,2]
[394547273,1763692232103,-194.89169966,0.00016189,2]
[394547275,1763692232112,-250.0,0.0001619,2]
[394547277,1763692232299,-195.50917891,0.00016192,2]
[394547278,1763692232309,-160.18738833,0.000162,2]
[394547279,1763692232319,-164.75514222,0.000162,2]
[394547280,1763692232329,-250.0,0.00016203,2]
[394547281,1763692232338,-166.66,0.00016522,2]
[394547282,1763692232347,-321.0,0.00016605,2]
[394547283,1763692232357,-200.0,0.00016762,2]
[394547284,1763692232367,-914.91,0.00016787,2]
[394547285,1763692232377,-166.66,0.00016856,2]
[394547286,1763692232387,-1200.0,0.00016882,2]
[394547287,1763692232399,-1000.0,0.00016883,2]
[394547288,1763692232409,-150.0,0.00016929,2]
[394547289,1763692232419,-300.0,0.00016985,2]
[394547291,1763692232430,-2924.17,0.00016986,2]
[394547293,1763692232440,-999.0,0.00017003,3]
[394547295,1763692232449,-300.0,0.00017052,2]
[394547297,1763692232459,-250.0,0.00017074,2]
[394547299,1763692232468,-150.0,0.00017152,2]
[394547301,1763692232478,-150.0,0.00017152,2]
[394547303,1763692232487,-166.66,0.0001719,2]
[394547305,1763692232496,-166.66,0.00017523,2]
[394547307,1763692232506,-321.0,0.00017527,2]
[394547310,1763692232516,-150.0,0.00017552,2]
[394547313,1763692232525,-452.0,0.00017584,2]
[394547316,1763692232535,-1601.0,0.00017585,2]
[394547319,1763692232545,-822.0,0.00017585,2]
[394547322,1763692232556,-1256.0,0.00017585,2]
[394547324,1763692232567,-794.0,0.00017585,2]
[394547327,1763692232577,-908.0,0.00017585,2]
[394547329,1763692232587,-1192.0,0.00017585,2]
[394547331,1763692232597,-609.0,0.00017585,2]
[394547333,1763692232606,-1606.0,0.00017585,2]
[394547334,1763692232616,-1319.0,0.00017585,2]
[394547335,1763692232626,-172.77,0.000176,2]
[394547336,1763692232638,-364.78,0.00017688,2]
[394547337,1763692232651,-1702.2902357,0.00017705,2]
[394547338,1763692232661,-1000.0,0.00017746,2]
[394547339,1763692232671,-165.58,0.00017762,2]
[394547340,1763692232680,-250.0,0.00017807,2]
[394547341,1763692232694,-300.0,0.00017807,2]
[394547342,1763692232704,-193.0,0.00017807,2]
[394547343,1763692232714,-300.0,0.00017807,2]
[394547344,1763692232723,-300.0,0.00017811,2]
[394547345,1763692232733,-302.54662703,0.00017811,2]
[394547346,1763692232744,-503.21419196,0.00017828,2]
[394547347,1763692232753,-200.0,0.00017831,2]
[394547348,1763692232763,-200.0,0.00017832,2]
[394547349,1763692232773,-500.0,0.00017832,2]
[394547350,1763692232782,-200.0,0.00017832,2]
[394547351,1763692232792,-200.0,0.00017832,2]
[394547352,1763692232802,-500.0,0.00017845,2]
[394547353,1763692232812,-482.4994832,0.00017846,2]
[394547354,1763692232822,-269.09950249,0.00017846,2]
[394547355,1763692232832,-151.0,0.00017846,2]
[394547356,1763692232842,-500.0,0.00017873,2]
[394547357,1763692232851,-406.21448191,0.000179,2]
[394547358,1763692232862,-1091.78138093,0.000179,2]
[394547359,1763692232872,-179.2967139,0.000179,2]
[394547360,1763692232882,-346.41565619,0.000179,2]
[394547361,1763692232891,-1023.67363871,0.0001791,5]
[394547362,1763692232903,-1007.27970183,0.0001791,5]
[394547363,1763692232913,-1098.05342992,0.0001791,5]
[394547364,1763692232924,-1007.27970183,0.0001791,5]
[394547365,1763692232933,-1007.27970183,0.0001791,5]
[394547366,1763692232943,-715.0,0.00017961,2]
[394547367,1763692232953,-501.28182449,0.00017973,2]
[394547368,1763692232962,-498.95764127,0.00017973,2]
[394547369,1763692232972,-500.0,0.00017973,2]
[394547370,1763692232981,-500.0,0.00017973,2]
[394547371,1763692232991,-308.18826031,0.00017973,2]
[394547372,1763692233001,-500.0,0.00017973,2]
[394547373,1763692233011,-500.0,0.00017973,2]
[394547374,1763692233020,-503.61817401,0.00017973,2]
[394547375,1763692233030,-500.0,0.00017973,2]
[394547376,1763692233040,-630.8,0.00017973,2]
[394547377,1763692233049,-1000.0,0.00017976,2]
[394547378,1763692233058,-151.0,0.00017999,2]
[394547379,1763692233068,-1007.27970183,0.00017999,5]
[394547380,1763692233077,-1007.27970183,0.00017999,5]
[394547381,1763692233087,-1007.27970183,0.00017999,5]
[394547382,1763692233097,-1007.27970183,0.00017999,5]
[394547383,1763692233107,-626.65513746,0.00017999,2]
[394547384,1763692233116,-179.14674778,0.00017999,2]
[394547385,1763692233126,-500.0,0.00017999,2]
[394547386,1763692233136,-282.65326766,0.00017999,2]
[394547387,1763692233147,-214.2980352,0.00017999,2]
[394547388,1763692233158,-500.0,0.00017999,2]
[394547389,1763692233167,-500.0,0.00017999,2]
[394547390,1763692233177,-500.0,0.00017999,2]
[394547391,1763692233187,-500.0,0.00017999,2]
[394547392,1763692233196,-500.0,0.00017999,2]
[394547393,1763692233206,-500.0,0.00017999,2]
[394547394,1763692233215,-352.45649872,0.00017999,2]
[394547395,1763692233225,-500.0,0.00017999,2]
[394547396,1763692233237,-528.1685582,0.00017999,2]
[394547397,1763692233246,-500.0,0.00017999,2]
[394547398,1763692233255,-500.0,0.00017999,2]
[394547399,1763692233264,-500.0,0.00017999,2]
[394547400,1763692233273,-395.28206126,0.00017999,2]
[394547401,1763692233282,-500.0,0.00017999,2]
[394547402,1763692233292,-408.58592016,0.00017999,2]
[394547403,1763692233301,-165.84153845,0.00017999,2]
[394547404,1763692233310,-1454.0,0.00018,2]
[394547405,1763692233320,-2872.59866454,0.00018,2]
[394547406,1763692233333,-41695.17940857,0.00018,2]
[394547407,1763692233344,-1254.41808677,0.00018,2]
[394547408,1763692233355,-436.60011272,0.00018,2]
[394547409,1763692233366,-434.57723662,0.00018,2]
[394547410,1763692233377,-709.39189094,0.00018,2]
[394547411,1763692233472,-479.58345571,0.00018,2]
[394547412,1763692233483,-5384.73144438,0.00018,2]
[394547413,1763692233495,-262547.57864704,0.00018,2]
[394547414,1763692233515,-867.12763229,0.00018,2]
[394547415,1763692233536,-816.83939398,0.00018,2]
[394547416,1763692233552,-17310.495,0.00018,2]
[394547425,1763692238154,-1300.34147804,0.00018,2]
[394547426,1763692238210,-256.63964094,0.00018,2]
[394547427,1763692238318,-260.25,0.00018,2]
[394547474,1763692240626,-2659.0,0.00017585,2]
[394547475,1763692240636,-633.21019,0.00018,2]
[394547480,1763692246380,-278.02722045,0.00016177,2]
[394547482,1763692246774,-300.00179291,0.00016177,2]
[394547483,1763692248547,-194.995186,0.00016177,2]
[394547484,1763692266276,500.0,0.00041913,30]
[394547485,1763692266668,500.0,0.00041913,30]
[394547486,1763692270769,421.328,0.00041913,120]
[394547487,1763692272483,500.0,0.00041913,30]
[394547488,1763692273172,500.0,0.00041913,30]
[394547490,1763692281857,250.0,0.00041913,30]
[394547491,1763692283943,539.24,0.00041913,30]
[394547492,1763692290039,500.0,0.00041913,30]
[394547493,1763692292028,161.76,8.718e-05,2]
[394547494,1763692292259,161.76,9.808e-05,2]
[394547495,1763692292470,161.76,0.00010898,2]
[394547496,1763692292668,161.76,0.00011988,2]
[394547497,1763692292872,161.76,0.00013077,2]
[394547498,1763692293120,161.76,0.00014167,2]
[394547499,1763692293342,161.76,0.00015257,2]
[394547503,1763692304920,5888.0,0.00035616,120]
[394547504,1763692307730,717.0,0.00035616,120]
[394547508,1763692319173,576.151,0.00041913,120]
[394547509,1763692327894,500.0,0.00041913,120]
[394547510,1763692328486,500.0,0.00041913,120]
[394547511,1763692332812,500.0,0.00041913,120]
[394547512,1763692333448,500.0,0.00041913,120]
[394547513,1763692334083,500.0,0.00041913,120]
[394547514,1763692334677,500.0,0.00041913,120]
[394547515,1763692335117,500.0,0.00041913,120]
[394547516,1763692390980,500.0,0.00041913,120]
[394547519,1763692430575,840.08,0.000252,120]
[394547520,1763692448028,500.0,0.00041913,120]
[394547521,1763692448472,500.0,0.00041913,120]
[394547522,1763692449082,500.0,0.00041913,120]
[394547523,1763692455888,500.0,0.00041913,120]
[394547525,1763692546984,-154.84886786,0.00016177,2]
[394547527,1763692644734,500.0,0.00041913,120]
[394547528,1763692645414,500.0,0.00041913,120]
[394547529,1763692646037,500.0,0.00041913,120]
[394547530,1763692708170,500.0,0.00041931,120]
[394547531,1763692730213,1000.0,0.00013699,2]
[394547533,1763692757409,500.0,0.00041931,120]
[394547534,1763692758015,500.0,0.00041931,120]
[394547535,1763692758629,500.0,0.00041931,120]
[394547536,1763692759465,500.0,0.00041931,120]
[394547537,1763692760095,500.0,0.00041931,120]
[394547538,1763692763835,1000.0,0.00041931,60]
[394547540,1763692807771,500.0,0.00041931,120]
[394547541,1763692808437,500.0,0.00041931,120]
[394547542,1763692820868,500.0,0.00041931,120]
[394547543,1763692821524,500.0,0.00041931,120]
[394547544,1763692822170,500.0,0.00041931,120]
[394547545,1763692822741,500.0,0.00041931,120]
[394547546,1763692823380,500.0,0.00041931,120]
[394547547,1763692824017,500.0,0.00041931,120]
[394547548,1763692868940,526.48701545,0.00041931,120]
[394547549,1763692868984,500.0,0.00041931,120]
[394547550,1763692869256,521.0,0.00035616,120]
[394547551,1763692869560,500.0,0.00041931,120]
[394547552,1763692870333,500.0,0.00041931,120]
[394547553,1763692870985,500.0,0.00041931,120]
[394547554,1763692871290,500.0,0.00041931,120]
[394547555,1763692871606,500.0,0.00041931,120]
[394547556,1763692871915,500.0,0.00041931,120]
[394547557,1763692872520,500.0,0.00041931,120]
[394547558,1763692873158,500.0,0.00041931,120]
[394547559,1763692873762,500.0,0.00041931,120]
[394547560,1763692874387,500.0,0.00041931,120]
[394547561,1763692875015,500.0,0.00041931,120]
[394547562,1763692875636,500.0,0.00041931,120]
[394547563,1763692883778,500.0,0.00041931,120]
[394547564,1763692884411,500.0,0.00041931,120]
[394547565,1763692885079,500.0,0.00041931,120]
[394547566,1763692885693,500.0,0.00041931,120]
[394547567,1763692886345,500.0,0.00041931,120]
[394547568,1763692887053,500.0,0.00041931,120]
[394547569,1763692888056,500.0,0.00041931,120]
[394547570,1763692888535,500.0,0.00041931,120]
[394547571,1763692889192,500.0,0.00041931,120]
[394547572,1763692889799,500.0,0.00041931,120]
[394547573,1763692890459,500.0,0.00041931,120]
[394547574,1763692891087,500.0,0.00041931,120]
[394547575,1763692891413,500.0,0.00041931,120]
[394547576,1763692891704,500.0,0.00041931,120]
[394547577,1763692892051,500.0,0.00041931,120]
[394547578,1763692892320,500.0,0.00041931,120]
[394547579,1763692892666,500.0,0.00041931,120]
[394547580,1763692893271,500.0,0.00041931,120]
[394547581,1763692893860,500.0,0.00041931,120]
[394547582,1763692894467,500.0,0.00041931,120]
[394547583,1763692895090,500.0,0.00041931,120]
[394547584,1763692895715,500.0,0.00041931,120]
[394547585,1763692896322,500.0,0.00041931,120]
[394547586,1763692896943,500.0,0.00041931,120]
[394547587,1763692897584,500.0,0.00041931,120]
[394547588,1763692898645,500.0,0.00041931,120]
[394547589,1763692898684,500.0,0.00041931,120]
[394547590,1763692899288,500.0,0.00041931,120]
[394547591,1763692899915,500.0,0.00041931,120]
[394547592,1763692900563,500.0,0.00041931,120]
[394547593,1763692901912,500.0,0.00041931,120]
[394547594,1763692902499,529.41,0.00035,120]
[394547595,1763692902568,500.0,0.00041931,120]
[394547596,1763692903244,500.0,0.00041931,120]
[394547597,1763692922604,636.2053859,0.00041931,120]
[394547598,1763692930229,620.0,0.00041931,120]
[394547599,1763692930452,500.0,0.00041931,120]
[394547600,1763692930691,620.0,0.00041931,120]
[394547601,1763692930899,500.0,0.00041931,120]
[394547603,1763692986588,500.0,0.00041931,120]
[394547604,1763692987212,500.0,0.00041931,120]
[394547605,1763692987827,500.0,0.00041931,120]
[394547606,1763692988446,500.0,0.00041931,120]
[394547607,1763692989491,500.0,0.00041931,120]
[394547608,1763692990350,500.0,0.00041931,120]
[394547609,1763692991016,500.0,0.00041931,120]
[394547610,1763692991639,500.0,0.00041931,120]
[394547611,1763692992273,500.0,0.00041931,120]
[394547612,1763692993225,500.0,0.00041931,120]
[394547613,1763692993475,500.0,0.00041931,120]
[394547614,1763692994080,500.0,0.00041931,120]
[394547615,1763692994680,500.0,0.00041931,120]
[394547616,1763692995053,500.0,0.00041931,120]
[394547617,1763692995682,500.0,0.00041931,120]
[394547618,1763692996317,500.0,0.00041931,120]
[394547619,1763692996938,500.0,0.00041931,120]
[394547620,1763692997548,500.0,0.00041931,120]
[394547621,1763692998189,500.0,0.00041931,120]
[394547622,1763692998811,500.0,0.00041931,120]
[394547623,1763692999427,500.0,0.00041931,120]
[394547624,1763693000078,500.0,0.00041931,120]
[394547625,1763693000692,500.0,0.00041931,120]
[394547626,1763693001326,500.0,0.00041931,120]
[394547627,1763693001993,500.0,0.00041931,120]
[394547628,1763693002637,500.0,0.00041931,120]
[394547629,1763693003797,500.0,0.00041931,120]
[394547630,1763693003888,500.0,0.00041931,120]
[394547631,1763693004521,500.0,0.00041931,120]
[394547632,1763693010785,500.0,0.00041931,120]
[394547633,1763693011867,500.0,0.00041931,120]
[394547634,1763693012502,500.0,0.00041931,120]
[394547635,1763693013120,500.0,0.00041931,120]
[394547636,1763693013754,500.0,0.00041931,120]
[394547637,1763693014366,500.0,0.00041931,120]
[394547638,1763693014971,500.0,0.00041931,120]
[394547639,1763693016028,500.0,0.00041931,120]
[394547640,1763693016670,500.0,0.00041931,120]
[394547641,1763693017275,500.0,0.00041931,120]
[394547642,1763693017879,500.0,0.00041931,120]
[394547643,1763693018538,500.0,0.00041931,120]
[394547644,1763693019157,500.0,0.00041931,120]
[394547645,1763693019773,500.0,0.00041931,120]
[394547646,1763693020166,518.5,0.00041931,120]
[394547647,1763693020407,500.0,0.00041931,120]
[394547648,1763693021072,500.0,0.00041931,120]
[394547649,1763693021655,500.0,0.00041931,120]
[394547650,1763693022280,500.0,0.00041931,120]
[394547651,1763693022867,500.0,0.00041931,120]
[394547652,1763693023517,500.0,0.00041931,120]
[394547653,1763693048574,414.0,0.00041931,120]
[394547654,1763693048972,800.0,0.00041931,120]
[394547655,1763693049227,429.318,0.00041931,120]
[394547656,1763693049823,445.202766,0.00041931,120]
[394547657,1763693050429,461.67526834,0.00041931,120]
[394547658,1763693051030,478.75725327,0.00041931,120]
[394547659,1763693051665,496.47127164,0.00041931,120]
[394547660,1763693052265,514.84070869,0.00041931,120]
[394547661,1763693052887,533.88981491,0.00041931,120]
[394547662,1763693053520,553.64373807,0.00041931,120]
[394547663,1763693076898,1068.0,0.00041931,120]
[394547664,1763693107555,375.89484394,0.00041931,120]
[394547665,1763693110514,500.0,0.00041931,120]
[394547666,1763693110981,500.0,0.00041931,120]
[394547667,1763693111604,500.0,0.00041931,120]
[394547668,1763693112323,500.0,0.00041931,120]
[394547669,1763693112603,520.0,0.00041931,120]
[394547670,1763693112949,500.0,0.00041931,120]
[394547671,1763693113225,520.0,0.00041931,120]
[394547672,1763693113658,500.0,0.00041931,120]
[394547673,1763693114297,500.0,0.00041931,120]
[394547674,1763693114926,500.0,0.00041931,120]
[394547675,1763693115008,500.0,0.00041931,120]
[394547676,1763693115571,500.0,0.00041931,120]
[394547677,1763693115612,500.0,0.00041931,120]
[394547678,1763693116201,500.0,0.00041931,120]
[394547679,1763693116256,500.0,0.00041931,120]
[394547680,1763693116871,500.0,0.00041931,120]
[394547681,1763693117283,500.0,0.00041931,120]
[394547682,1763693117489,500.0,0.00041931,120]
[394547683,1763693117898,500.0,0.00041931,120]
[394547684,1763693118095,500.0,0.00041931,120]
[394547685,1763693118530,500.0,0.00041931,120]
[394547686,1763693118711,500.0,0.00041931,120]
[394547687,1763693119616,500.0,0.00041931,120]
[394547688,1763693119945,500.0,0.00041931,120]
[394547689,1763693120576,500.0,0.00041931,120]
[394547690,1763693121209,500.0,0.00041931,120]
[394547691,1763693121865,500.0,0.00041931,120]
[394547692,1763693122501,500.0,0.00041931,120]
[394547693,1763693122732,736.89916097,0.00041931,30]
[394547694,1763693123114,500.0,0.00041931,120]
[394547695,1763693123736,500.0,0.00041931,120]
[394547696,1763693124415,500.0,0.00041931,120]
[394547697,1763693125226,500.0,0.00041931,120]
[394547698,1763693125667,500.0,0.00041931,120]
[394547699,1763693126771,500.0,0.00041931,120]
[394547700,1763693127410,500.0,0.00041931,120]
[394547701,1763693172654,500.0,0.00041931,120]
[394547702,1763693173371,500.0,0.00041931,120]
[394547703,1763693173996,500.0,0.00041931,120]
[394547704,1763693174744,500.0,0.00041931,120]
[394547705,1763693176812,500.0,0.00041931,120]
[394547706,1763693177439,500.0,0.00041931,120]
[394547707,1763693178061,500.0,0.00041931,120]
[394547708,1763693178681,500.0,0.00041931,120]
[394547709,1763693179328,500.0,0.00041931,120]
[394547710,1763693179944,500.0,0.00041931,120]
[394547711,1763693180563,500.0,0.00041931,120]
[394547712,1763693189800,1022.20312767,0.00041931,30]
[394547715,1763693225567,520.0,0.00041931,120]
[394547716,1763693226167,539.24,0.00041931,120]
[394547717,1763693226765,559.19188,0.00041931,120]
[394547718,1763693227458,579.88197956,0.00041931,120]
[394547719,1763693228253,601.3376128,0.00041931,120]
[394547720,1763693228363,500.0,0.00041931,120]
[394547721,1763693228425,500.0,0.00041931,120]
[394547722,1763693228692,623.58710448,0.00041931,120]
[394547723,1763693228997,500.0,0.00041931,120]
[394547724,1763693229626,500.0,0.00041931,120]
[394547725,1763693230242,500.0,0.00041931,120]
[394547728,1763693239157,642.94,0.00041931,120]
[394547750,1763693242623,200.0,0.00041931,30]
[394547751,1763693243126,300.0,0.00041931,30]
[394547752,1763693246148,500.0,0.00041931,120]
[394547753,1763693246771,500.0,0.00041931,120]
[394547754,1763693247410,500.0,0.00041932,120]
[394547755,1763693250564,356846.68276943,0.00041932,30]
[394547756,1763693253903,926.10648253,0.00041932,60]
[394547757,1763693254604,151.0,0.00041932,50]
[394547758,1763693254923,151.0,0.00041932,50]
[394547759,1763693255271,298.0,0.00041932,50]
[394547760,1763693258756,1320.0,0.00041932,30]
[394547762,1763693275744,571.51490673,0.00041932,120]
[394547763,1763693283444,1000.0,0.00041932,120]
[394547764,1763693290722,911.09188548,0.00041932,120]
[394547765,1763693296352,1000.0,0.00041932,30]
[394547766,1763693296853,208.69054717,0.00041932,120]
[394547767,1763693299503,500.0,0.00032876,120]
[394547768,1763693299746,500.0,0.00032876,120]
[394547769,1763693300035,500.0,0.00032876,120]
[394547770,1763693300309,500.0,0.00032876,120]
[394547771,1763693300535,500.0,0.00032876,120]
[394547772,1763693300773,500.0,0.00032876,120]
[394547773,1763693301037,645.72005707,0.00032876,120]
[394547774,1763693308219,1000.0,0.00041932,60]
[394547775,1763693314214,151.0,0.00041932,30]
[394547776,1763693314517,151.0,0.00041932,30]
[394547777,1763693314814,151.0,0.00041932,30]
[394547778,1763693315127,151.0,0.00041932,30]
[394547779,1763693315441,151.0,0.00041932,30]
[394547780,1763693315757,151.0,0.00041932,30]
[394547781,1763693316052,151.0,0.00041932,30]
[394547782,1763693316355,151.0,0.00041932,30]
[394547783,1763693316711,197.754764,0.00041932,30]
[394547784,1763693318732,1000.0,0.00041932,30]
[394547785,1763693331423,1000.0,0.00041932,30]
[394547786,1763693332185,1111.79303124,0.00041932,30]
[394547787,1763693344290,1000.0,0.00041932,30]
[394547788,1763693348898,520.0,0.00041932,120]
[394547789,1763693349563,539.24,0.00041932,120]
[394547790,1763693350278,559.19188,0.00041932,120]
[394547791,1763693351136,579.88197956,0.00041932,120]
[394547792,1763693353097,1250.15097777,0.00041932,60]
[394547793,1763693354945,1000.0,0.00041932,30]
[394547794,1763693356612,803.76719472,0.00041932,120]
[394547796,1763693361711,1000.0,0.00041932,30]
[394547797,1763693362144,500.0,0.00041932,120]
[394547798,1763693362799,518.5,0.00041932,120]
[394547799,1763693363430,537.6845,0.00041932,120]
[394547800,1763693364058,557.5788265,0.00041932,120]
[394547801,1763693364686,578.20924308,0.00041932,120]
[394547802,1763693368393,599.60298507,0.00041932,120]
[394547803,1763693369066,621.78829552,0.00041932,120]
[394547804,1763693369690,644.79446246,0.00041932,120]
[394547805,1763693369734,1000.0,0.00041932,30]
[394547806,1763693370299,668.65185757,0.00041932,120]
[394547807,1763693370982,693.3919763,0.00041932,120]
[394547808,1763693371609,719.04747942,0.00041932,120]
[394547809,1763693382763,1000.0,0.00041932,30]
[394547810,1763693395119,1000.0,0.00041932,60]
[394547811,1763693402514,428.73,0.00041932,120]
[394547812,1763693403179,260.99,0.00041932,120]
[394547813,1763693403220,322.99,0.00041932,120]
[394547814,1763693407801,1000.0,0.00041932,120]
[394547815,1763693418711,509.49245202,0.00041932,120]
[394547816,1763693420507,1000.0,0.00041932,30]
[394547824,1763693426838,173.15444,0.00041932,60]
[394547826,1763693426984,192.96919,0.00041932,60]
[394547827,1763693427124,173.15444,0.00041932,60]
[394547829,1763693427280,192.96919,0.00041932,60]
[394547830,1763693427415,173.15444,0.00041932,60]
[394547832,1763693427563,192.96919,0.00041932,60]
[394547833,1763693427695,173.15444,0.00041932,60]
[394547835,1763693427840,192.96919,0.00041932,60]
[394547836,1763693427981,173.15444,0.00041932,60]
[394547838,1763693428127,192.96919,0.00041932,60]
[394547860,1763693431324,-250.0,0.00016182,2]
[394547861,1763693431333,-1200.0,0.00016199,2]
[394547862,1763693431343,-300.0,0.00016199,2]
[394547863,1763693431353,-300.0,0.00016199,2]
[394547864,1763693431362,-1200.0,0.00016199,2]
[394547865,1763693431372,-150.0,0.000162,2]
[394547866,1763693431381,-150.0,0.000162,2]
[394547867,1763693431391,-150.0,0.000162,2]
[394547868,1763693431400,-150.0,0.000162,2]
[394547869,1763693431409,-150.0,0.000162,2]
[394547870,1763693431418,-150.0,0.000162,2]
[394547871,1763693431427,-157.04995076,0.000162,2]
[394547872,1763693431437,-152.58778093,0.000162,2]
[394547873,1763693431446,-207.95051032,0.000162,2]
[394547874,1763693431455,-150.57953223,0.000162,2]
[394547875,1763693431464,-227.63886103,0.000162,2]
[394547876,1763693431473,-250.0,0.0001621,2]
[394547877,1763693431482,-200.0,0.00016319,2]
[394547878,1763693431491,-161.76,0.00016347,2]
[394547879,1763693431500,-299.87,0.000164,2]
[394547880,1763693431509,-7011.74,0.00016438,2]
[394547881,1763693431519,-440.5,0.00016544,2]
[394547882,1763693431528,-662.0085685,0.00016769,2]
[394547887,1763693431802,-907.43793576,0.00016769,2]
[394547888,1763693431812,-840.08,0.000168,2]
[394547889,1763693431821,-150.0,0.000168,2]
[394547890,1763693431830,-250.0,0.00017,2]
[394547891,1763693431839,-150.0,0.000171,2]
[394547892,1763693431848,-150.0,0.000171,2]
[394547894,1763693431858,-150.0,0.000171,2]
[394547895,1763693431867,-400.0,0.000171,6]
[394547896,1763693431876,-900.0,0.000172,6]
[394547897,1763693431885,-152.35,0.00017225,2]
[394547898,1763693431895,-1400.0,0.000173,6]
[394547900,1763693431904,-150.0,0.000174,2]
[394547901,1763693431913,-1900.0,0.000174,6]
[394547902,1763693431922,-161.76,0.00017437,2]
[394547903,1763693431934,-725.18225384,0.00017489,2]
[394547904,1763693431943,-2400.0,0.000175,6]
[394547905,1763693431952,-3544.05868686,0.00017573,2]
[394547906,1763693431962,-399.2975,0.00017585,2]
[394547907,1763693431976,-400.0,0.000176,6]
[394547908,1763693431986,-3544.05868683,0.00017609,2]
[394547909,1763693431995,-150.2729443,0.00017645,2]
[394547910,1763693432007,-156.50954668,0.00017645,2]
[394547911,1763693432016,-3544.05868683,0.00017646,2]
[394547912,1763693432026,-1008.55740202,0.00017655,2]
[394547913,1763693432035,-500.0,0.00017673,2]
[394547914,1763693432044,-500.0,0.00017673,2]
[394547915,1763693432053,-165.17,0.00017677,2]
[394547916,1763693432063,-3544.05868683,0.00017682,2]
[394547917,1763693432072,-575.0,0.00017685,2]
[394547918,1763693432081,-3435.0,0.00017685,2]